fUST/lending_fUST_20250705
["ID","MTS","AMOUNT","RATE_DAILY","PERIOD"]
[369631928,1751662239672,-343.96,0.00016438,2]
[369631929,1751662239683,-497.67,0.00016438,2]
[369631930,1751662239692,-460.0,0.00016438,2]
[369631931,1751662239701,-460.0,0.00016438,2]
[369631932,1751662239710,-460.0,0.00016438,2]
[369631933,1751662239719,-460.0,0.00016438,2]
[369631934,1751662239728,-460.0,0.00016438,2]
[369631935,1751662239738,-460.0,0.00016438,2]
[369631936,1751662239746,-525.57392953,0.00016711,2]
[369631937,1751662239756,-460.0,0.00016711,2]
[369631938,1751662239765,-460.0,0.00016711,2]
[369631939,1751662239774,-262.07,0.00016712,2]
[369631940,1751662239784,-460.0,0.00016712,2]
[369631941,1751662239793,-329.04,0.00016712,2]
[369631942,1751662239802,-375.62527131,0.00016712,2]
[369631943,1751662239811,-453.58,0.00016712,2]
[369631944,1751662239820,-224.42,0.00016712,2]
[369631945,1751662239829,-368.95,0.00016712,2]
[369631946,1751662239838,-326.18,0.00016712,2]
[369631947,1751662239847,-252.79,0.00016712,2]
[369631948,1751662239857,-460.0,0.00016712,2]
[369631949,1751662239866,-460.0,0.00016712,2]
[369631950,1751662239875,-460.0,0.00016712,2]
[369631951,1751662239885,-561.33,0.00016712,2]
[369631952,1751662239896,-583.96515762,0.00016712,2]
[369631953,1751662239905,-153.63,0.00016712,2]
[369631954,1751662239914,-460.0,0.00016712,2]
[369631955,1751662239923,-452.11,0.00016712,2]
[369631956,1751662239933,-186.96526949,0.00016712,2]
[369631957,1751662239942,-460.0,0.00016712,2]
[369631958,1751662239952,-497.67,0.00016712,2]
[369631959,1751662239961,-210.97,0.00016712,2]
[369631960,1751662239971,-460.0,0.00016712,2]
[369631961,1751662239980,-420.0,0.00016728,2]
[369631962,1751662239989,-500.0,0.00016791,2]
[369631963,1751662239999,-999.8024878,0.000169,2]
[369631964,1751662240008,-479.06,0.00016985,2]
[369631965,1751662240017,-179.18,0.00016986,2]
[369631966,1751662240027,-460.0,0.00016986,2]
[369631967,1751662240036,-460.0,0.00016986,2]
[369631968,1751662240045,-460.0,0.00016986,2]
[369631969,1751662240055,-460.0,0.00016986,2]
[369631970,1751662240064,-497.67,0.00016986,2]
[369631971,1751662240073,-460.0,0.00016986,2]
[369631972,1751662240082,-999.80248768,0.00017176,2]
[369631973,1751662240092,-460.0,0.0001726,2]
[369631974,1751662240101,-460.0,0.0001726,2]
[369631975,1751662240110,-460.0,0.0001726,2]
[369631976,1751662240119,-460.0,0.0001726,2]
[369631977,1751662240129,-497.67,0.0001726,2]
[369631978,1751662240138,-460.0,0.0001726,2]
[369631979,1751662240147,-160.0,0.00017281,2]
[369631980,1751662240156,-837.48520791,0.00017281,2]
[369631981,1751662240165,-524.86301716,0.00017281,2]
[369631982,1751662240174,-215.11345689,0.00017281,2]
[369631983,1751662240183,-847.91215827,0.00017281,2]
[369631984,1751662240193,-230.40116161,0.00017281,2]
[369631985,1751662240202,-160.0,0.00017281,2]
[369631986,1751662240211,-999.80248768,0.00017452,2]
[369631987,1751662240221,-460.0,0.00017534,2]
[369631988,1751662240231,-460.0,0.00017534,2]
[369631989,1751662240241,-460.0,0.00017534,2]
[369631990,1751662240250,-460.0,0.00017534,2]
[369631991,1751662240260,-497.67,0.00017534,2]
[369631992,1751662240270,-999.80248768,0.00017728,2]
[369631993,1751662240279,-322.97,0.000178,2]
[369631994,1751662240289,-460.0,0.00017808,2]
[369631995,1751662240299,-460.0,0.00017808,2]
[369631996,1751662240308,-460.0,0.00017808,2]
[369631997,1751662240317,-460.0,0.00017808,2]
[369631998,1751662240327,-497.67,0.00017808,2]
[369631999,1751662240335,-999.80248768,0.00018003,2]
[369632000,1751662240345,-460.0,0.00018082,2]
[369632001,1751662240354,-460.0,0.00018082,2]
[369632002,1751662240363,-460.0,0.00018082,2]
[369632003,1751662240371,-460.0,0.00018082,2]
[369632004,1751662240381,-497.67,0.00018082,2]
[369632005,1751662240390,-999.80248768,0.00018279,2]
[369632006,1751662240400,-460.0,0.00018356,2]
[369632007,1751662240410,-444.6,0.00018356,2]
[369632008,1751662240560,-377.24716146,0.00018356,2]
[369632009,1751662240570,-363.93,0.00018356,2]
[369632010,1751662240580,-497.67,0.00018356,2]
[369632011,1751662240589,-207.4,0.00018443,2]
[369632012,1751662240602,-594.45,0.00018549,2]
[369632013,1751662240612,-460.0,0.00018549,2]
[369632014,1751662240621,-460.0,0.00018549,2]
[369632015,1751662240630,-460.0,0.00018549,2]
[369632016,1751662240641,-460.0,0.00018549,2]
[369632017,1751662240651,-460.0,0.00018549,2]
[369632018,1751662240660,-460.0,0.00018549,2]
[369632019,1751662240671,-460.0,0.00018549,2]
[369632020,1751662240681,-460.0,0.00018549,2]
[369632021,1751662240690,-460.0,0.00018549,2]
[369632022,1751662240699,-999.80248768,0.00018555,2]
[369632023,1751662240709,-201.01,0.0001863,2]
[369632024,1751662240718,-497.67,0.0001863,2]
[369632025,1751662240728,-999.80248768,0.00018831,2]
[369632026,1751662240737,-500.0,0.00018899,2]
[369632027,1751662240746,-193.52774378,0.00018899,2]
[369632028,1751662240757,-500.0,0.00018899,2]
[369632029,1751662240767,-500.0,0.00018899,2]
[369632030,1751662240776,-500.0,0.00018899,2]
[369632031,1751662240785,-223.36936073,0.00018899,2]
[369632032,1751662240795,-408.2719422,0.00018899,2]
[369632033,1751662240804,-500.0,0.00018899,2]
[369632034,1751662240813,-500.0,0.00018899,2]
[369632035,1751662240822,-500.0,0.00018899,2]
[369632036,1751662240831,-1779.65057457,0.000189,2]
[369632037,1751662240841,-497.67,0.00018904,2]
[369632038,1751662240852,-174.21596751,0.00019078,2]
[369632039,1751662240861,-999.80248768,0.00019107,2]
[369632040,1751662240870,-428.791658,0.0001911,2]
[369632041,1751662240879,-497.67,0.00019178,2]
[369632042,1751662240889,-402.814394,0.00019178,2]
[369632043,1751662240898,-666.0,0.00019178,2]
[369632044,1751662240907,-248.42,0.00019319,3]
[369632045,1751662240916,-745.26,0.00019319,3]
[369632046,1751662240925,-151.0,0.00019329,2]
[369632047,1751662240935,-151.0,0.00019329,2]
[369632048,1751662240944,-151.0,0.00019329,2]
[369632049,1751662240953,-151.0,0.00019329,2]
[369632050,1751662240962,-151.0,0.00019329,2]
[369632051,1751662240971,-33730.77243737,0.00019329,2]
[369632052,1751662240991,-460.0,0.00017534,2]
[369632053,1751662241000,-11086.80322602,0.00019329,2]
[369632054,1751662241013,-3390.07,0.00019329,2]
[369632063,1751662243685,-460.0,0.00017808,2]
[369632065,1751662243694,-460.0,0.00018082,2]
[369632067,1751662243703,-460.0,0.00018356,2]
[369632069,1751662243711,-460.0,0.0001863,2]
[369632071,1751662243720,-460.0,0.00018904,2]
[369632072,1751662243729,-460.0,0.00019178,2]
[369632075,1751662243748,-51792.35433661,0.00019329,2]
[369632077,1751662243759,-169.166666,0.00019351,2]
[369632078,1751662243769,-174.21596748,0.00019352,2]
[369632079,1751662243779,-999.80248768,0.00019383,2]
[369632080,1751662243789,-500.0,0.00019393,2]
[369632081,1751662243798,-497.67,0.00019452,2]
[369632082,1751662243808,-460.0,0.00019452,2]
[369632083,1751662243818,-2000.0,0.000195,2]
[369632084,1751662243828,-2000.0,0.000195,2]
[369632085,1751662243838,-151.0,0.000195,2]
[369632086,1751662243848,-201.116562,0.000195,2]
[369632087,1751662243859,-201.116562,0.000195,2]
[369632088,1751662243869,-201.116562,0.000195,2]
[369632089,1751662243879,-201.116562,0.000195,2]
[369632091,1751662243888,-151.0,0.000195,2]
[369632093,1751662243898,-151.0,0.000195,2]
[369632095,1751662243907,-151.0,0.000195,2]
[369632097,1751662243917,-35803.96699264,0.000195,2]
[369632099,1751662243930,-22202.14450377,0.000195,2]
[369632101,1751662243941,-22146.37441626,0.000195,2]
[369632103,1751662243953,-1001.64666871,0.000195,2]
[369632104,1751663327874,289.600443,0.00013699,2]
[369632114,1751663397982,-169.08900871,0.00015093,2]
[369632115,1751663403411,-160.95857617,0.00015093,2]
[369632116,1751663406219,-203.36281022,0.00015092,2]
[369632117,1751663410048,-161.40481742,0.00015092,2]
[369632118,1751663413065,-164.03419297,0.00015092,2]
[369632119,1751663416077,-188.08947561,0.00015092,2]
[369632120,1751663418817,-227.0754602,0.00015092,2]
[369632121,1751663423386,-154.52182272,0.00015092,2]
[369632122,1751663425080,-101.51142086,0.00015092,2]
[369632123,1751663425111,-92.06751036,0.00015092,2]
[369632124,1751663427301,-151.97116644,0.00015092,2]
[369632125,1751663428972,-55.9613232,0.00015092,2]
[369632126,1751663429000,-99.0408797,0.00015092,2]
[369632127,1751663431766,-56.9591203,0.00015092,2]
[369632128,1751663431779,-3403.34572438,0.00015093,2]
[369632141,1751663432248,-21166.60669074,0.00015093,2]
[369632142,1751663432259,-311.39560551,0.00015173,2]
[369632143,1751663432268,-423.296966,0.00015229,2]
[369632144,1751663432277,-383.63366685,0.00015273,2]
[369632145,1751663432287,-179.03043434,0.00015273,2]
[369632146,1751663432296,-208.273142,0.00015413,2]
[369632147,1751663432305,-256.19848577,0.00016037,2]
[369632148,1751663432314,-292.89699069,0.000162,2]
[369632149,1751663432324,-201.87749838,0.00016237,2]
[369632150,1751663432333,-31390.80326529,0.00016336,2]
[369632151,1751663432480,-12380.99569815,0.00016336,2]
[369632158,1751663437715,-489.16432978,0.00016335,2]
[369632159,1751663437725,-255.93886205,0.00016336,2]
[369632160,1751663437772,-944.06113795,0.00016336,2]
[369632161,1751663437782,-1051.02636604,0.00016338,2]
[369632162,1751663437791,-16359.97983758,0.00016338,2]
[369632163,1751663437800,-319.67,0.00016428,3]
[369632164,1751663437810,-159.83,0.00016428,3]
[369632165,1751663437819,-479.54,0.00016428,3]
[369632166,1751663437828,-193.52774378,0.00016437,2]
[369632167,1751663437837,-500.0,0.00016437,2]
[369632168,1751663437846,-500.0,0.00016437,2]
[369632169,1751663437856,-500.0,0.00016437,2]
[369632170,1751663437864,-500.0,0.00016437,2]
[369632171,1751663437874,-500.0,0.00016437,2]
[369632172,1751663437884,-408.2719422,0.00016437,2]
[369632173,1751663437894,-460.0,0.00016438,2]
[369632174,1751663437904,-460.0,0.00016438,2]
[369632175,1751663437913,-460.0,0.00016438,2]
[369632176,1751663437922,-460.0,0.00016438,2]
[369632177,1751663437932,-460.0,0.00016438,2]
[369632178,1751663437941,-460.0,0.00016438,2]
[369632179,1751663437951,-460.0,0.00016438,2]
[369632180,1751663437960,-460.0,0.00016438,2]
[369632181,1751663437970,-460.0,0.00016438,2]
[369632182,1751663437979,-460.0,0.00016438,2]
[369632183,1751663437988,-460.0,0.00016438,2]
[369632184,1751663437997,-198.55526453,0.00016438,2]
[369632185,1751663438007,-460.0,0.00016438,2]
[369632186,1751663438016,-460.0,0.00016438,2]
[369632187,1751663438026,-460.0,0.00016438,2]
[369632188,1751663438036,-460.0,0.00016438,2]
[369632189,1751663438045,-460.0,0.00016438,2]
[369632190,1751663438055,-460.0,0.00016438,2]
[369632191,1751663438065,-460.0,0.00016438,2]
[369632192,1751663438075,-460.0,0.00016438,2]
[369632193,1751663438084,-460.0,0.00016438,2]
[369632194,1751663438094,-460.0,0.00016438,2]
[369632195,1751663438103,-460.0,0.00016438,2]
[369632196,1751663438112,-460.0,0.00016438,2]
[369632197,1751663438121,-537.51,0.00016438,2]
[369632198,1751663438131,-460.0,0.00016438,2]
[369632199,1751663438140,-460.0,0.00016438,2]
[369632201,1751663438150,-460.0,0.00016438,2]
[369632203,1751663438160,-460.0,0.00016438,2]
[369632205,1751663438170,-500.0,0.00016438,2]
[369632207,1751663438179,-500.0,0.00016438,2]
[369632209,1751663438189,-223.36936073,0.00016438,2]
[369632211,1751663438198,-460.0,0.00016438,2]
[369632213,1751663438208,-460.0,0.00016438,2]
[369632214,1751663438217,-592.33894468,0.00016438,2]
[369632215,1751663438226,-460.0,0.00016438,2]
[369632216,1751663438236,-383.18436601,0.00016438,2]
[369632217,1751663438245,-460.0,0.00016438,2]
[369632218,1751663438255,-460.0,0.00016438,2]
[369632219,1751663438265,-460.0,0.00016438,2]
[369632220,1751663438275,-460.0,0.00016438,2]
[369632221,1751663438284,-460.0,0.00016438,2]
[369632222,1751663438294,-460.0,0.00016438,2]
[369632224,1751663438304,-460.0,0.00016438,2]
[369632226,1751663438313,-460.0,0.00016438,2]
[369632228,1751663438322,-460.0,0.00016438,2]
[369632229,1751663438331,-460.0,0.00016438,2]
[369632230,1751663438341,-460.0,0.00016438,2]
[369632231,1751663438350,-460.0,0.00016438,2]
[369632232,1751663438359,-471.04,0.00016438,2]
[369632233,1751663438369,-460.0,0.00016438,2]
[369632234,1751663438378,-460.0,0.00016438,2]
[369632235,1751663438387,-460.0,0.00016438,2]
[369632236,1751663438397,-460.0,0.00016438,2]
[369632237,1751663438407,-595.43,0.00016438,2]
[369632238,1751663438416,-460.0,0.00016438,2]
[369632239,1751663438425,-460.0,0.00016438,2]
[369632240,1751663438434,-460.0,0.00016438,2]
[369632241,1751663438444,-460.0,0.00016438,2]
[369632242,1751663438455,-460.0,0.00016438,2]
[369632243,1751663438464,-460.0,0.00016438,2]
[369632244,1751663438474,-500.0,0.00016438,2]
[369632245,1751663438483,-460.0,0.00016438,2]
[369632246,1751663438493,-460.0,0.00016438,2]
[369632247,1751663438503,-460.0,0.00016438,2]
[369632248,1751663438512,-460.0,0.00016438,2]
[369632249,1751663438521,-602.62577193,0.00016438,2]
[369632250,1751663438536,-460.0,0.00016438,2]
[369632251,1751663438545,-460.0,0.00016438,2]
[369632252,1751663438554,-460.0,0.00016438,2]
[369632253,1751663438564,-460.0,0.00016438,2]
[369632254,1751663438574,-460.0,0.00016438,2]
[369632255,1751663438583,-460.0,0.00016438,2]
[369632256,1751663438593,-532.15,0.00016438,2]
[369632257,1751663438603,-460.0,0.00016438,2]
[369632258,1751663438612,-460.0,0.00016438,2]
[369632259,1751663438621,-420.49326757,0.00016438,2]
[369632260,1751663438634,-460.0,0.00016438,2]
[369632261,1751663438643,-460.0,0.00016438,2]
[369632262,1751663438653,-460.0,0.00016438,2]
[369632263,1751663438662,-600.50486984,0.00016438,2]
[369632264,1751663438671,-460.0,0.00016438,2]
[369632265,1751663438681,-460.0,0.00016438,2]
[369632266,1751663438691,-460.0,0.00016438,2]
[369632267,1751663438701,-460.0,0.00016438,2]
[369632268,1751663438711,-460.0,0.00016438,2]
[369632269,1751663438720,-460.0,0.00016438,2]
[369632270,1751663438729,-460.0,0.00016438,2]
[369632271,1751663438739,-460.0,0.00016438,2]
[369632272,1751663438749,-460.0,0.00016438,2]
[369632273,1751663438758,-375.62527131,0.00016438,2]
[369632274,1751663438768,-479.16,0.00016438,2]
[369632275,1751663438778,-338.90660576,0.00016438,2]
[369632276,1751663438788,-460.0,0.00016438,2]
[369632277,1751663438797,-460.0,0.00016438,2]
[369632278,1751663438806,-460.0,0.00016438,2]
[369632279,1751663438817,-222.6890901,0.00016438,2]
[369632280,1751663438826,-460.0,0.00016438,2]
[369632281,1751663438835,-460.0,0.00016438,2]
[369632282,1751663438844,-460.0,0.00016438,2]
[369632283,1751663438853,-315.85977734,0.00016438,2]
[369632284,1751663438863,-460.0,0.00016438,2]
[369632285,1751663438873,-460.0,0.00016438,2]
[369632286,1751663438882,-460.0,0.00016438,2]
[369632287,1751663438891,-460.0,0.00016438,2]
[369632288,1751663438900,-460.0,0.00016438,2]
[369632289,1751663438910,-460.0,0.00016438,2]
[369632290,1751663438919,-460.0,0.00016438,2]
[369632291,1751663438928,-591.18,0.00016438,2]
[369632292,1751663438938,-460.0,0.00016438,2]
[369632293,1751663438947,-460.0,0.00016438,2]
[369632294,1751663438957,-460.0,0.00016438,2]
[369632295,1751663438967,-460.0,0.00016438,2]
[369632296,1751663438976,-460.0,0.00016438,2]
[369632297,1751663438985,-460.0,0.00016438,2]
[369632298,1751663438995,-460.0,0.00016438,2]
[369632299,1751663439005,-460.0,0.00016438,2]
[369632300,1751663439014,-460.0,0.00016438,2]
[369632301,1751663439024,-153.63,0.00016438,2]
[369632302,1751663439033,-460.0,0.00016438,2]
[369632303,1751663439043,-460.0,0.00016438,2]
[369632304,1751663439053,-460.0,0.00016438,2]
[369632305,1751663439062,-460.0,0.00016438,2]
[369632306,1751663439072,-523.68,0.00016438,2]
[369632307,1751663439081,-460.0,0.00016438,2]
[369632308,1751663439090,-460.0,0.00016438,2]
[369632309,1751663439100,-507.02,0.00016438,2]
[369632310,1751663439109,-460.0,0.00016438,2]
[369632311,1751663439118,-460.0,0.00016438,2]
[369632312,1751663439128,-460.0,0.00016438,2]
[369632313,1751663439138,-460.0,0.00016438,2]
[369632314,1751663439147,-460.0,0.00016438,2]
[369632315,1751663439156,-460.0,0.00016438,2]
[369632316,1751663439165,-460.0,0.00016438,2]
[369632317,1751663439174,-460.0,0.00016438,2]
[369632318,1751663439183,-460.0,0.00016438,2]
[369632319,1751663439193,-460.0,0.00016438,2]
[369632320,1751663439203,-460.0,0.00016438,2]
[369632321,1751663439213,-453.58,0.00016438,2]
[369632322,1751663439222,-460.0,0.00016438,2]
[369632323,1751663439232,-460.0,0.00016438,2]
[369632324,1751663439242,-460.0,0.00016438,2]
[369632325,1751663439251,-460.0,0.00016438,2]
[369632326,1751663439262,-460.0,0.00016438,2]
[369632327,1751663439271,-460.0,0.00016438,2]
[369632328,1751663439280,-460.0,0.00016438,2]
[369632329,1751663439289,-460.0,0.00016438,2]
[369632330,1751663439298,-460.0,0.00016438,2]
[369632331,1751663439308,-460.0,0.00016438,2]
[369632332,1751663439317,-460.0,0.00016438,2]
[369632333,1751663439327,-607.02,0.00016438,2]
[369632334,1751663439336,-473.87,0.00016438,2]
[369632335,1751663439345,-515.59,0.00016438,2]
[369632336,1751663439355,-210.97,0.00016438,2]
[369632337,1751663439364,-460.0,0.00016438,2]
[369632338,1751663439373,-151.0,0.00016438,2]
[369632339,1751663439383,-399.36013052,0.00016438,2]
[369632340,1751663439392,-923.35,0.00016438,2]
[369632341,1751663439402,-460.0,0.00016438,2]
[369632342,1751663439412,-460.0,0.00016438,2]
[369632343,1751663439421,-460.0,0.00016438,2]
[369632344,1751663439430,-460.0,0.00016438,2]
[369632345,1751663439439,-460.0,0.00016438,2]
[369632346,1751663439448,-460.0,0.00016438,2]
[369632347,1751663439457,-460.0,0.00016438,2]
[369632348,1751663439466,-460.0,0.00016438,2]
[369632349,1751663439476,-564.65,0.00016438,2]
[369632350,1751663439485,-460.0,0.00016438,2]
[369632351,1751663439495,-460.0,0.00016438,2]
[369632352,1751663439505,-151.0,0.00016438,2]
[369632353,1751663439515,-460.0,0.00016438,2]
[369632354,1751663439524,-460.0,0.00016438,2]
[369632355,1751663439538,-460.0,0.00016438,2]
[369632356,1751663439548,-460.0,0.00016438,2]
[369632357,1751663439558,-460.0,0.00016438,2]
[369632358,1751663439568,-460.0,0.00016438,2]
[369632359,1751663439578,-460.0,0.00016438,2]
[369632360,1751663439588,-460.0,0.00016438,2]
[369632361,1751663439597,-460.0,0.00016438,2]
[369632362,1751663439608,-460.0,0.00016438,2]
[369632363,1751663439618,-460.0,0.00016438,2]
[369632364,1751663439627,-460.0,0.00016438,2]
[369632365,1751663439637,-176.67890996,0.00016438,2]
[369632366,1751663439647,-460.0,0.00016438,2]
[369632367,1751663439657,-570.09,0.00016438,2]
[369632368,1751663439667,-460.0,0.00016438,2]
[369632369,1751663439676,-460.0,0.00016438,2]
[369632370,1751663439686,-460.0,0.00016438,2]
[369632371,1751663439696,-460.0,0.00016438,2]
[369632372,1751663439705,-460.0,0.00016438,2]
[369632373,1751663439715,-460.0,0.00016438,2]
[369632374,1751663439725,-460.0,0.00016438,2]
[369632375,1751663439734,-460.0,0.00016438,2]
[369632376,1751663439743,-460.0,0.00016438,2]
[369632377,1751663439753,-151.0,0.00016438,2]
[369632378,1751663439763,-460.0,0.00016438,2]
[369632379,1751663439772,-460.0,0.00016438,2]
[369632380,1751663439781,-460.0,0.00016438,2]
[369632381,1751663439790,-460.0,0.00016438,2]
[369632382,1751663439903,-460.0,0.00016438,2]
[369632383,1751663439941,-460.0,0.00016438,2]
[369632384,1751663439951,-460.0,0.00016438,2]
[369632385,1751663439961,-460.0,0.00016438,2]
[369632386,1751663439971,-460.0,0.00016438,2]
[369632387,1751663439981,-592.57036219,0.00016438,2]
[369632388,1751663439990,-460.0,0.00016438,2]
[369632389,1751663440000,-460.0,0.00016438,2]
[369632390,1751663440010,-460.0,0.00016438,2]
[369632391,1751663440020,-460.0,0.00016438,2]
[369632392,1751663440030,-460.0,0.00016438,2]
[369632393,1751663440040,-460.0,0.00016438,2]
[369632394,1751663440050,-151.0,0.00016438,2]
[369632395,1751663440060,-460.0,0.00016438,2]
[369632396,1751663440070,-500.0,0.00016438,2]
[369632397,1751663440080,-160.4,0.00016438,2]
[369632398,1751663440089,-460.0,0.00016438,2]
[369632399,1751663440099,-447.36686639,0.00016438,2]
[369632400,1751663440109,-460.0,0.00016438,2]
[369632401,1751663440119,-460.0,0.00016438,2]
[369632402,1751663440128,-460.0,0.00016438,2]
[369632403,1751663440139,-460.0,0.00016438,2]
[369632404,1751663440149,-585.64873978,0.00016438,2]
[369632405,1751663440160,-390.04914362,0.00016438,2]
[369632406,1751663440169,-460.0,0.00016438,2]
[369632407,1751663440179,-593.09283682,0.00016438,2]
[369632408,1751663440188,-460.0,0.00016438,2]
[369632409,1751663440198,-460.0,0.00016438,2]
[369632410,1751663440207,-460.0,0.00016438,2]
[369632411,1751663440217,-460.0,0.00016438,2]
[369632412,1751663440226,-460.0,0.00016438,2]
[369632413,1751663440235,-460.0,0.00016438,2]
[369632414,1751663440245,-460.0,0.00016438,2]
[369632415,1751663440254,-559.6,0.00016438,2]
[369632416,1751663440264,-460.0,0.00016438,2]
[369632417,1751663440273,-460.0,0.00016438,2]
[369632418,1751663440283,-520.12,0.00016438,2]
[369632419,1751663440293,-460.0,0.00016438,2]
[369632420,1751663440302,-460.0,0.00016438,2]
[369632421,1751663440312,-607.23,0.00016438,2]
[369632422,1751663440321,-460.0,0.00016438,2]
[369632423,1751663440331,-460.0,0.00016438,2]
[369632424,1751663440340,-460.0,0.00016438,2]
[369632425,1751663440350,-460.0,0.00016438,2]
[369632426,1751663440360,-460.0,0.00016438,2]
[369632427,1751663440370,-460.0,0.00016438,2]
[369632428,1751663440379,-460.0,0.00016438,2]
[369632429,1751663440389,-460.0,0.00016438,2]
[369632430,1751663440399,-460.0,0.00016438,2]
[369632431,1751663440409,-460.0,0.00016438,2]
[369632432,1751663440419,-460.0,0.00016438,2]
[369632433,1751663440428,-460.0,0.00016438,2]
[369632434,1751663440438,-460.0,0.00016438,2]
[369632435,1751663440448,-460.0,0.00016438,2]
[369632436,1751663440457,-460.0,0.00016438,2]
[369632437,1751663440467,-460.0,0.00016438,2]
[369632438,1751663440477,-505.27,0.00016438,2]
[369632439,1751663440487,-460.0,0.00016438,2]
[369632440,1751663440496,-460.0,0.00016438,2]
[369632441,1751663440506,-460.0,0.00016438,2]
[369632442,1751663440516,-460.0,0.00016438,2]
[369632443,1751663440527,-460.0,0.00016438,2]
[369632444,1751663440539,-460.0,0.00016438,2]
[369632445,1751663440549,-460.0,0.00016438,2]
[369632446,1751663440559,-460.0,0.00016438,2]
[369632447,1751663440570,-499.90907169,0.00016438,2]
[369632448,1751663440580,-370.36091234,0.00016438,2]
[369632449,1751663440590,-460.0,0.00016438,2]
[369632450,1751663440600,-608.58,0.00016438,2]
[369632451,1751663440610,-460.0,0.00016438,2]
[369632452,1751663440621,-517.26472086,0.00016438,2]
[369632453,1751663440630,-460.0,0.00016438,2]
[369632454,1751663440644,-438.02941369,0.00016438,2]
[369632455,1751663440654,-460.0,0.00016438,2]
[369632456,1751663440663,-460.0,0.00016438,2]
[369632457,1751663440673,-564.62,0.00016438,2]
[369632458,1751663440683,-151.0,0.00016438,2]
[369632459,1751663440692,-460.0,0.00016438,2]
[369632460,1751663440702,-460.0,0.00016438,2]
[369632461,1751663440711,-460.0,0.00016438,2]
[369632462,1751663440720,-476.16,0.00016438,2]
[369632463,1751663440730,-460.0,0.00016438,2]
[369632464,1751663440740,-460.0,0.00016438,2]
[369632465,1751663440749,-460.0,0.00016438,2]
[369632466,1751663440758,-460.0,0.00016438,2]
[369632467,1751663440768,-460.0,0.00016438,2]
[369632468,1751663440777,-460.0,0.00016438,2]
[369632469,1751663440787,-460.0,0.00016438,2]
[369632470,1751663440797,-460.0,0.00016438,2]
[369632471,1751663440806,-541.96,0.00016438,2]
[369632472,1751663440816,-460.0,0.00016438,2]
[369632473,1751663440826,-460.0,0.00016438,2]
[369632474,1751663440835,-460.0,0.00016438,2]
[369632475,1751663440845,-460.0,0.00016438,2]
[369632476,1751663440854,-460.0,0.00016438,2]
[369632477,1751663440864,-460.0,0.00016438,2]
[369632478,1751663440876,-460.0,0.00016438,2]
[369632479,1751663440886,-460.0,0.00016438,2]
[369632480,1751663440895,-460.0,0.00016438,2]
[369632481,1751663440905,-577.76,0.00016438,2]
[369632482,1751663440914,-460.0,0.00016438,2]
[369632483,1751663440923,-460.0,0.00016438,2]
[369632484,1751663440933,-460.0,0.00016438,2]
[369632485,1751663440942,-460.0,0.00016438,2]
[369632486,1751663440951,-460.0,0.00016438,2]